fUSD/lending_fUSD_20240406
["ID","MTS","AMOUNT","RATE_DAILY","PERIOD"]
[321679483,1712382668417,-150.0,0.00024802,2]
[321679484,1712382668427,-12006.97309498,0.00024804,2]
[321679485,1712382668440,-481.04425995,0.00024804,2]
[321679486,1712382668450,-189.07911625,0.00024804,2]
[321679487,1712382668461,-189.07911625,0.00024808,2]
[321679488,1712382668470,-150.0,0.00024809,2]
[321679489,1712382668479,-230.86335038,0.0002481,2]
[321679490,1712382668489,-288.57918797,0.00024812,2]
[321679491,1712382668499,-453.35527992,0.00024813,2]
[321679492,1712382668508,-288.57918797,0.00024815,2]
[321679493,1712382668517,-150.0,0.00024815,2]
[321679494,1712382668527,-300.0,0.00024815,2]
[321679495,1712382668536,-150.0,0.00024816,2]
[321679496,1712382668547,-1500.0,0.00024816,2]
[321679497,1712382668556,-150.0,0.0002482,2]
[321679498,1712382668565,-236.34889531,0.0002482,2]
[321679499,1712382668574,-150.0,0.00024821,2]
[321679500,1712382668585,-288.57918797,0.00024821,2]
[321679501,1712382668595,-288.57918797,0.00024821,2]
[321679502,1712382668605,-481.04425995,0.00024823,2]
[321679503,1712382668614,-150.0,0.00024823,2]
[321679504,1712382668625,-881.38408493,0.00024824,2]
[321679505,1712382668635,-453.35527992,0.00024824,2]
[321679506,1712382668645,-1500.0,0.00024825,2]
[321679507,1712382668654,-150.0,0.00024826,2]
[321679508,1712382668664,-189.07911625,0.00024827,2]
[321679509,1712382668674,-559.12403539,0.00024829,2]
[321679510,1712382668691,-1500.0,0.0002483,2]
[321679511,1712382668712,-189.07911625,0.0002483,2]
[321679512,1712382668730,-230.86335038,0.00024832,2]
[321679513,1712382668751,-150.0,0.00024832,2]
[321679514,1712382668767,-300.0,0.00024836,2]
[321679515,1712382668795,-189.07911625,0.00024837,2]
[321679516,1712382668816,-189.07911625,0.0002484,2]
[321679517,1712382668833,-230.86335038,0.0002484,2]
[321679518,1712382668856,-453.35527992,0.00024841,2]
[321679519,1712382668872,-189.07911625,0.00024841,2]
[321679520,1712382668890,-12006.97309498,0.00024841,2]
[321679521,1712382668912,-150.0,0.00024842,2]
[321679522,1712382668931,-481.04425995,0.00024842,2]
[321679523,1712382668945,-230.86335038,0.00024844,2]
[321679524,1712382668968,-12006.97309498,0.00024844,2]
[321679525,1712382668983,-150.0,0.00024845,2]
[321679526,1712382668998,-236.34889531,0.00024845,2]
[321679527,1712382669011,-150.0,0.00024846,2]
[321679528,1712382669027,-481.04425995,0.00024848,2]
[321679529,1712382669051,-150.0,0.00024848,2]
[321679530,1712382669065,-12006.97309498,0.00024848,2]
[321679531,1712382669080,-481.04425995,0.00024851,2]
[321679532,1712382669095,-236.34889531,0.00024852,2]
[321679533,1712382669110,-481.04425995,0.00024852,2]
[321679534,1712382669125,-1500.0,0.00024852,2]
[321679535,1712382669140,-236.34889531,0.00024853,2]
[321679536,1712382669154,-236.34889531,0.00024854,2]
[321679537,1712382669169,-150.0,0.00024859,2]
[321679538,1712382669185,-236.34889531,0.00024859,2]
[321679539,1712382669198,-12006.97309498,0.00024861,2]
[321679540,1712382669213,-189.07911625,0.00024861,2]
[321679541,1712382669227,-12006.97309498,0.00024863,2]
[321679542,1712382669242,-230.86335038,0.00024864,2]
[321679543,1712382669256,-12006.97309498,0.00024865,2]
[321679544,1712382669280,-481.04425995,0.00024865,2]
[321679545,1712382669304,-453.35527992,0.00024866,2]
[321679546,1712382669319,-288.57918797,0.00024866,2]
[321679547,1712382669333,-236.34889531,0.00024869,2]
[321679548,1712382669347,-150.0,0.00024869,2]
[321679549,1712382669361,-150.0,0.00024869,2]
[321679550,1712382669376,-236.34889531,0.0002487,2]
[321679551,1712382669390,-150.0,0.0002487,2]
[321679552,1712382669404,-236.34889531,0.00024871,2]
[321679553,1712382669418,-150.0,0.00024871,2]
[321679554,1712382669436,-189.07911625,0.00024872,2]
[321679555,1712382669450,-453.35527992,0.00024874,2]
[321679556,1712382669465,-12006.97309498,0.00024875,2]
[321679557,1712382669479,-150.0,0.00024875,2]
[321679558,1712382669495,-288.57918797,0.00024876,2]
[321679559,1712382669509,-150.0,0.00024877,2]
[321679560,1712382669525,-481.04425995,0.00024877,2]
[321679561,1712382669540,-519.94728831,0.00024878,2]
[321679562,1712382669555,-560.91510343,0.00024878,2]
[321679563,1712382669570,-834.83,0.00024878,2]
[321679564,1712382669585,-400.82718897,0.00024878,2]
[321679565,1712382669600,-500.0,0.00024878,2]
[321679566,1712382669615,-151.0,0.00024878,7]
[321679567,1712382669639,-357.313796,0.00024878,7]
[321679568,1712382669663,-357.313796,0.00024878,7]
[321679569,1712382669678,-500.0,0.00024878,2]
[321679570,1712382669692,-151.0,0.00024878,7]
[321679571,1712382669715,-151.0,0.00024878,7]
[321679572,1712382669730,-151.0,0.00024878,7]
[321679573,1712382669744,-500.0,0.00024878,2]
[321679574,1712382669761,-311.972638,0.00024878,3]
[321679575,1712382669775,-311.972638,0.00024878,3]
[321679576,1712382669791,-500.0,0.00024878,2]
[321679577,1712382669806,-151.0,0.00024878,7]
[321679578,1712382669822,-500.0,0.00024878,2]
[321679579,1712382669839,-151.0,0.00024878,7]
[321679580,1712382669858,-151.0,0.00024878,7]
[321679581,1712382670009,-500.0,0.00024878,2]
[321679582,1712382670029,-151.0,0.00024878,7]
[321679583,1712382670038,-518.89948457,0.00024878,2]
[321679584,1712382670049,-500.0,0.00024878,2]
[321679585,1712382670058,-500.0,0.00024878,2]
[321679586,1712382670067,-526.55296706,0.00024878,2]
[321679587,1712382670077,-500.0,0.00024878,2]
[321679588,1712382670087,-151.0,0.00024878,7]
[321679589,1712382670097,-182.666064,0.00024878,7]
[321679590,1712382670107,-182.666064,0.00024878,7]
[321679591,1712382670116,-151.0,0.00024878,7]
[321679592,1712382670126,-500.0,0.00024878,2]
[321679593,1712382670136,-519.13338487,0.00024878,2]
[321679594,1712382670146,-267.746232,0.00024878,7]
[321679595,1712382670155,-230.86335038,0.00024878,2]
[321679596,1712382670165,-288.57918797,0.00024878,2]
[321679597,1712382670174,-201.56474768,0.0002488,2]
[321679598,1712382670184,-481.04425995,0.0002488,2]
[321679599,1712382670193,-230.86335038,0.00024881,2]
[321679600,1712382670203,-150.0,0.00024881,2]
[321679601,1712382670213,-2653.64475153,0.00024882,2]
[321679602,1712382670222,-5800.0,0.00024883,2]
[321679603,1712382670232,-151.0,0.00024883,7]
[321679604,1712382670241,-151.0,0.00024883,7]
[321679605,1712382670251,-151.0,0.00024883,7]
[321679606,1712382670260,-158.343334,0.00024883,7]
[321679607,1712382670269,-158.343334,0.00024883,7]
[321679608,1712382670279,-150.0,0.00024884,2]
[321679609,1712382670288,-230.86335038,0.00024885,2]
[321679610,1712382670298,-200.0,0.00024889,2]
[321679611,1712382670307,-2000.0,0.00024889,2]
[321679612,1712382670317,-200.0,0.00024889,2]
[321679613,1712382670326,-288.57918797,0.00024893,2]
[321679614,1712382670336,-425.76901908,0.00024894,2]
[321679615,1712382670345,-500.0,0.00024894,2]
[321679616,1712382670354,-150.0,0.00024894,2]
[321679617,1712382670364,-535.24610019,0.00024894,2]
[321679618,1712382670373,-500.0,0.00024894,2]
[321679619,1712382670383,-500.0,0.00024894,2]
[321679620,1712382670392,-598.52045508,0.00024894,2]
[321679621,1712382670401,-500.0,0.00024894,2]
[321679622,1712382670411,-500.0,0.00024894,2]
[321679623,1712382670420,-500.0,0.00024894,2]
[321679624,1712382670431,-500.0,0.00024894,2]
[321679625,1712382670441,-523.78507164,0.00024894,2]
[321679626,1712382670449,-564.24198287,0.00024894,2]
[321679627,1712382670459,-429.80664816,0.00024894,2]
[321679628,1712382670468,-500.0,0.00024894,2]
[321679629,1712382670478,-500.0,0.00024894,2]
[321679630,1712382670487,-669.45,0.00024894,2]
[321679631,1712382670496,-886.08,0.00024894,2]
[321679632,1712382670506,-500.0,0.00024894,2]
[321679633,1712382670515,-815.96,0.00024894,2]
[321679634,1712382670525,-1226.6,0.00024894,2]
[321679635,1712382670535,-1142.36,0.00024894,2]
[321679636,1712382670547,-3245.11,0.00024894,2]
[321679637,1712382670556,-500.0,0.00024894,2]
[321679638,1712382670566,-500.0,0.00024894,2]
[321679639,1712382670575,-821.24,0.00024894,2]
[321679640,1712382670586,-961.01,0.00024894,2]
[321679641,1712382670595,-10718.49,0.00024894,2]
[321679642,1712382670604,-3830.59,0.00024894,2]
[321679643,1712382670615,-500.0,0.00024894,2]
[321679644,1712382670625,-500.0,0.00024894,2]
[321679645,1712382670634,-500.0,0.00024894,2]
[321679646,1712382670643,-563.73,0.00024894,2]
[321679647,1712382670652,-1296.93,0.00024894,2]
[321679648,1712382670662,-500.0,0.00024894,2]
[321679649,1712382670672,-500.0,0.00024894,2]
[321679650,1712382670682,-500.0,0.00024894,2]
[321679651,1712382670692,-821.32,0.00024894,2]
[321679652,1712382670701,-500.0,0.00024894,2]
[321679653,1712382670711,-500.0,0.00024894,2]
[321679654,1712382670721,-735.18,0.00024894,2]
[321679655,1712382670731,-2749.78,0.00024894,2]
[321679656,1712382670740,-500.0,0.00024894,2]
[321679657,1712382670749,-500.0,0.00024894,2]
[321679658,1712382670758,-500.0,0.00024894,2]
[321679659,1712382670767,-500.0,0.00024894,2]
[321679660,1712382670777,-500.0,0.00024894,2]
[321679661,1712382670786,-1000.9,0.00024894,2]
[321679662,1712382670795,-500.0,0.00024894,2]
[321679663,1712382670804,-1802.52,0.00024894,2]
[321679664,1712382670814,-513.78,0.00024894,2]
[321679665,1712382670824,-845.66,0.00024894,2]
[321679666,1712382670833,-591.97,0.00024894,2]
[321679667,1712382670844,-500.0,0.00024894,2]
[321679668,1712382670853,-1564.72,0.00024894,2]
[321679669,1712382670862,-500.0,0.00024894,2]
[321679670,1712382670871,-537.55,0.00024894,2]
[321679671,1712382670880,-1918.54,0.00024894,2]
[321679672,1712382670889,-566.99,0.00024894,2]
[321679673,1712382670899,-500.0,0.00024894,2]
[321679674,1712382670908,-500.0,0.00024894,2]
[321679675,1712382670918,-500.0,0.00024894,2]
[321679676,1712382670928,-500.0,0.00024894,2]
[321679677,1712382670937,-500.0,0.00024894,2]
[321679678,1712382670948,-500.0,0.00024894,2]
[321679679,1712382670957,-611.2,0.00024894,2]
[321679680,1712382670966,-500.0,0.00024894,2]
[321679681,1712382670976,-500.0,0.00024894,2]
[321679682,1712382670985,-894.13,0.00024894,2]
[321679683,1712382670995,-500.0,0.00024894,2]
[321679684,1712382671004,-527.46,0.00024894,2]
[321679685,1712382671014,-581.64,0.00024894,2]
[321679686,1712382671023,-519.82,0.00024894,2]
[321679687,1712382671033,-500.0,0.00024894,2]
[321679688,1712382671042,-1344.5,0.00024894,2]
[321679689,1712382671051,-725.49,0.00024894,2]
[321679690,1712382671061,-513.81795545,0.00024894,2]
[321679691,1712382671070,-500.31,0.00024894,2]
[321679692,1712382671079,-1370.81,0.00024894,2]
[321679693,1712382671088,-500.0,0.00024894,2]
[321679694,1712382671098,-500.0,0.00024894,2]
[321679695,1712382671107,-867.63,0.00024894,2]
[321679696,1712382671116,-674.2,0.00024894,2]
[321679697,1712382671125,-706.95,0.00024894,2]
[321679698,1712382671135,-500.0,0.00024894,2]
[321679699,1712382671144,-511.48112783,0.00024894,2]
[321679700,1712382671153,-881.94,0.00024894,2]
[321679701,1712382671163,-500.0,0.00024894,2]
[321679702,1712382671174,-500.0,0.00024894,2]
[321679703,1712382671185,-552.74,0.00024894,2]
[321679704,1712382671194,-730.99,0.00024894,2]
[321679705,1712382671204,-500.0,0.00024894,2]
[321679706,1712382671213,-510.3253234,0.00024894,2]
[321679707,1712382671223,-500.0,0.00024894,2]
[321679708,1712382671232,-500.0,0.00024894,2]
[321679709,1712382671241,-592.63,0.00024894,2]
[321679710,1712382671251,-500.0,0.00024894,2]
[321679711,1712382671260,-500.0,0.00024894,2]
[321679712,1712382671269,-519.85420805,0.00024894,2]
[321679713,1712382671279,-500.0,0.00024894,2]
[321679714,1712382671288,-500.0,0.00024894,2]
[321679715,1712382671298,-1664.31,0.00024894,2]
[321679716,1712382671307,-500.0,0.00024894,2]
[321679717,1712382671317,-755.0,0.00024894,2]
[321679718,1712382671328,-660.72,0.00024894,2]
[321679719,1712382671337,-500.0,0.00024894,2]
[321679720,1712382671347,-500.0,0.00024894,2]
[321679721,1712382671356,-500.0,0.00024894,2]
[321679722,1712382671366,-500.0,0.00024894,2]
[321679723,1712382671375,-500.0,0.00024894,2]
[321679724,1712382671385,-996.43,0.00024894,2]
[321679725,1712382671395,-500.0,0.00024894,2]
[321679726,1712382671405,-500.0,0.00024894,2]
[321679727,1712382671414,-453.35527992,0.00024894,2]
[321679728,1712382671424,-602.06475675,0.00024895,2]
[321679729,1712382671436,-151.02137916,0.00024895,2]
[321679730,1712382671446,-5822.10587372,0.00024895,2]
[321679731,1712382671455,-834.83,0.00024895,2]
[321679732,1712382671465,-834.83,0.00024895,2]
[321679733,1712382671475,-622.882482,0.00024895,2]
[321679734,1712382671485,-500.0,0.00024895,2]
[321679735,1712382671494,-500.0,0.00024895,2]
[321679736,1712382671504,-531.78140183,0.00024895,2]
[321679737,1712382671513,-211.56407458,0.00024895,2]
[321679738,1712382671527,-500.0,0.00024895,2]
[321679739,1712382671537,-555.43497583,0.00024895,2]
[321679740,1712382671546,-500.0,0.00024895,2]
[321679741,1712382671555,-500.0,0.00024895,2]
[321679742,1712382671566,-500.0,0.00024895,2]
[321679743,1712382671575,-669.45,0.00024895,2]
[321679744,1712382671585,-886.08,0.00024895,2]
[321679745,1712382671594,-500.0,0.00024895,2]
[321679746,1712382671605,-500.0,0.00024895,2]
[321679747,1712382671614,-500.0,0.00024895,2]
[321679748,1712382671623,-815.96,0.00024895,2]
[321679749,1712382671633,-1226.6,0.00024895,2]
[321679750,1712382671642,-1142.36,0.00024895,2]
[321679751,1712382671651,-500.0,0.00024895,2]
[321679752,1712382671661,-355.15562258,0.00024895,2]
[321679753,1712382671671,-3245.11,0.00024895,2]
[321679754,1712382671680,-500.0,0.00024895,2]
[321679755,1712382671692,-500.0,0.00024895,2]
[321679756,1712382671702,-821.24,0.00024895,2]
[321679757,1712382671712,-961.01,0.00024895,2]
[321679758,1712382671721,-10718.49,0.00024895,2]
[321679759,1712382671730,-500.0,0.00024895,2]
[321679760,1712382671740,-500.0,0.00024895,2]
[321679761,1712382671749,-3830.59,0.00024895,2]
[321679762,1712382671759,-500.0,0.00024895,2]
[321679763,1712382671768,-500.0,0.00024895,2]
[321679764,1712382671778,-529.55584159,0.00024895,2]
[321679765,1712382671787,-480.40352297,0.00024895,2]
[321679766,1712382671797,-563.73,0.00024895,2]
[321679767,1712382671807,-1296.93,0.00024895,2]
[321679768,1712382671816,-500.0,0.00024895,2]
[321679769,1712382671826,-500.0,0.00024895,2]
[321679770,1712382671835,-7380.39,0.00024895,2]
[321679771,1712382671845,-7380.39,0.00024895,2]
[321679772,1712382671855,-500.0,0.00024895,2]
[321679773,1712382671864,-500.0,0.00024895,2]
[321679774,1712382671874,-500.0,0.00024895,2]
[321679775,1712382671883,-821.32,0.00024895,2]
[321679776,1712382671892,-728.3,0.00024895,2]
[321679777,1712382671902,-728.3,0.00024895,2]
[321679778,1712382671911,-500.0,0.00024895,2]
[321679779,1712382671920,-500.0,0.00024895,2]
[321679780,1712382671929,-500.0,0.00024895,2]
[321679781,1712382671941,-500.0,0.00024895,2]
[321679782,1712382671950,-500.0,0.00024895,2]
[321679783,1712382671959,-500.0,0.00024895,2]
[321679784,1712382671968,-735.18,0.00024895,2]
[321679785,1712382672085,-2749.78,0.00024895,2]
[321679786,1712382672095,-500.0,0.00024895,2]
[321679787,1712382672105,-500.0,0.00024895,2]
[321679788,1712382672113,-500.0,0.00024895,2]
[321679789,1712382672123,-500.0,0.00024895,2]
[321679790,1712382672132,-500.0,0.00024895,2]
[321679791,1712382672141,-1000.9,0.00024895,2]
[321679792,1712382672151,-500.0,0.00024895,2]
[321679793,1712382672160,-1802.52,0.00024895,2]
[321679794,1712382672170,-522.37774624,0.00024895,2]
[321679795,1712382672179,-513.78,0.00024895,2]
[321679796,1712382672189,-845.66,0.00024895,2]
[321679797,1712382672198,-591.97,0.00024895,2]
[321679798,1712382672207,-207.65652,0.00024895,7]
[321679799,1712382672217,-182.666064,0.00024895,7]
[321679800,1712382672226,-182.666068,0.00024895,7]
[321679801,1712382672236,-500.0,0.00024895,2]
[321679802,1712382672245,-1564.72,0.00024895,2]
[321679803,1712382672255,-228.576816,0.00024895,7]
[321679804,1712382672264,-500.0,0.00024895,2]
[321679805,1712382672274,-537.55,0.00024895,2]
[321679806,1712382672283,-1918.54,0.00024895,2]
[321679807,1712382672292,-566.99,0.00024895,2]
[321679808,1712382672301,-500.0,0.00024895,2]
[321679809,1712382672310,-500.0,0.00024895,2]
[321679810,1712382672320,-500.0,0.00024895,2]
[321679811,1712382672329,-518.32015548,0.00024895,2]
[321679812,1712382672338,-500.0,0.00024895,2]
[321679813,1712382672348,-500.0,0.00024895,2]
[321679814,1712382672357,-500.0,0.00024895,2]
[321679815,1712382672366,-611.2,0.00024895,2]
[321679816,1712382672375,-500.0,0.00024895,2]
[321679817,1712382672385,-500.0,0.00024895,2]
[321679818,1712382672394,-894.13,0.00024895,2]
[321679819,1712382672404,-500.0,0.00024895,2]
[321679820,1712382672413,-527.46,0.00024895,2]
[321679821,1712382672423,-581.64,0.00024895,2]
[321679822,1712382672433,-519.82,0.00024895,2]
[321679823,1712382672442,-500.0,0.00024895,2]
[321679824,1712382672451,-1344.5,0.00024895,2]
[321679825,1712382672460,-725.49,0.00024895,2]
[321679826,1712382672470,-500.31,0.00024895,2]
[321679827,1712382672479,-1370.81,0.00024895,2]
[321679828,1712382672488,-500.0,0.00024895,2]
[321679829,1712382672498,-500.0,0.00024895,2]
[321679830,1712382672507,-867.63,0.00024895,2]
[321679831,1712382672517,-674.2,0.00024895,2]
[321679832,1712382672530,-706.95,0.00024895,2]
[321679833,1712382672540,-500.0,0.00024895,2]
[321679834,1712382672550,-881.94,0.00024895,2]
[321679835,1712382672559,-500.0,0.00024895,2]
[321679836,1712382672568,-500.0,0.00024895,2]
[321679837,1712382672577,-552.74,0.00024895,2]
[321679838,1712382672588,-730.99,0.00024895,2]
[321679839,1712382672597,-500.0,0.00024895,2]
[321679840,1712382672606,-500.0,0.00024895,2]
[321679841,1712382672615,-500.0,0.00024895,2]
[321679842,1712382672626,-592.63,0.00024895,2]
[321679843,1712382672635,-500.0,0.00024895,2]
[321679844,1712382672646,-500.0,0.00024895,2]
[321679845,1712382672655,-500.0,0.00024895,2]
[321679846,1712382672664,-500.0,0.00024895,2]
[321679847,1712382672673,-1664.31,0.00024895,2]
[321679848,1712382672685,-500.0,0.00024895,2]
[321679849,1712382672695,-755.0,0.00024895,2]
[321679850,1712382672705,-660.72,0.00024895,2]
[321679851,1712382672716,-500.0,0.00024895,2]
[321679852,1712382672726,-500.0,0.00024895,2]
[321679853,1712382672735,-500.0,0.00024895,2]
[321679854,1712382672745,-500.0,0.00024895,2]
[321679855,1712382672755,-500.0,0.00024895,2]
[321679856,1712382672765,-996.43,0.00024895,2]
[321679857,1712382672775,-500.0,0.00024895,2]
[321679858,1712382672784,-500.0,0.00024895,2]
[321679859,1712382672793,-230.86335038,0.00024895,2]
[321679860,1712382672803,-288.57918797,0.00024896,2]
[321679861,1712382672812,-453.35527992,0.00024896,2]
[321679862,1712382672822,-151.0,0.00024896,7]
[321679863,1712382672831,-151.0,0.00024896,7]
[321679864,1712382672841,-151.0,0.00024896,7]
[321679865,1712382672850,-154.148329,0.00024896,7]
[321679866,1712382672860,-151.0,0.00024896,7]
[321679867,1712382672869,-151.0,0.00024896,7]
[321679868,1712382672878,-151.0,0.00024896,7]
[321679869,1712382672888,-151.0,0.00024896,7]
[321679870,1712382672898,-200.169346,0.00024896,7]
[321679871,1712382672907,-200.169346,0.00024896,7]
[321679872,1712382672915,-240.569306,0.00024896,7]
[321679873,1712382672925,-240.569306,0.00024896,7]
[321679874,1712382672937,-151.0,0.00024896,7]
[321679875,1712382672946,-151.0,0.00024896,7]
[321679876,1712382672955,-151.0,0.00024896,7]
[321679877,1712382672964,-151.0,0.00024896,7]
[321679878,1712382672973,-151.0,0.00024896,7]
[321679879,1712382672982,-151.0,0.00024896,7]
[321679880,1712382672991,-151.0,0.00024896,7]
[321679881,1712382673000,-158.343334,0.00024896,7]
[321679882,1712382673009,-158.343334,0.00024896,7]
[321679883,1712382673018,-151.0,0.00024896,7]
[321679884,1712382673027,-357.313796,0.00024896,7]
[321679885,1712382673036,-357.313796,0.00024896,7]
[321679886,1712382673045,-151.0,0.00024896,7]
[321679887,1712382673055,-238.112682,0.00024896,7]
[321679888,1712382673064,-151.0,0.00024896,7]
[321679889,1712382673073,-311.972638,0.00024896,3]
[321679890,1712382673082,-311.972638,0.00024896,3]
[321679891,1712382673091,-453.35527992,0.00024897,2]
[321679892,1712382673101,-12006.97309498,0.00024898,2]
[321679893,1712382673110,-1500.0,0.00024898,2]
[321679894,1712382673119,-151.0,0.00024898,7]
[321679895,1712382673129,-151.0,0.00024898,7]
[321679896,1712382673138,-151.0,0.00024898,7]
[321679897,1712382673147,-151.0,0.00024898,7]
[321679898,1712382673156,-453.35527992,0.00024899,2]
[321679899,1712382673166,-300.0,0.00024899,2]
[321679900,1712382673175,-150.0,0.000249,2]
[321679901,1712382673184,-178.7499095,0.000249,2]
[321679902,1712382673193,-159.30049202,0.000249,2]
[321679903,1712382673202,-2943.23045427,0.000249,2]
[321679904,1712382673211,-2943.23045421,0.000249,2]
[321679905,1712382673220,-2943.23045421,0.000249,2]
[321679906,1712382673230,-559.12403539,0.000249,2]
[321679907,1712382673239,-2943.23045421,0.000249,2]
[321679908,1712382673249,-2943.23045421,0.000249,2]
[321679909,1712382673258,-2943.23045421,0.000249,2]
[321679910,1712382673268,-2943.23045421,0.000249,2]
[321679911,1712382673278,-2943.23045421,0.000249,2]
[321679912,1712382673287,-2943.23045421,0.000249,2]
[321679913,1712382673297,-2943.23045421,0.000249,2]
[321679914,1712382673306,-2943.23045421,0.000249,2]
[321679915,1712382673315,-2943.23045421,0.000249,2]
[321679916,1712382673325,-2943.23045421,0.000249,2]
[321679917,1712382673334,-2943.23045421,0.000249,2]
[321679918,1712382673342,-2943.23045421,0.000249,2]
[321679919,1712382673352,-2943.23045421,0.000249,2]
[321679920,1712382673361,-2943.23045421,0.000249,2]
[321679921,1712382673370,-2943.23045421,0.000249,2]
[321679922,1712382673380,-2943.23045421,0.000249,2]
[321679923,1712382673389,-2943.23045421,0.000249,2]
[321679924,1712382673397,-150.0,0.00024903,2]
[321679925,1712382673407,-333.040614,0.00024906,2]
[321679926,1712382673418,-333.040614,0.00024906,2]
[321679927,1712382673427,-333.040614,0.00024906,2]
[321679928,1712382673438,-333.040614,0.00024906,2]
[321679929,1712382673447,-333.040614,0.00024906,2]
[321679930,1712382673458,-333.040614,0.00024906,2]
[321679931,1712382673468,-333.040614,0.00024906,2]
[321679932,1712382673477,-333.040614,0.00024906,2]
[321679933,1712382673486,-333.040614,0.00024906,2]
[321679934,1712382673496,-333.040614,0.00024906,2]
[321679935,1712382673505,-333.040614,0.00024906,2]
[321679936,1712382673515,-333.040614,0.00024906,2]
[321679937,1712382673526,-333.040614,0.00024906,2]
[321679938,1712382673535,-333.040614,0.00024906,2]
[321679939,1712382673547,-333.040614,0.00024906,2]
[321679940,1712382673557,-333.040614,0.00024906,2]
[321679941,1712382673567,-333.040614,0.00024906,2]
[321679942,1712382673579,-333.040614,0.00024906,2]
[321679943,1712382673588,-333.040614,0.00024906,2]
[321679944,1712382673597,-333.040614,0.00024906,2]
[321679945,1712382673614,-333.040614,0.00024906,2]
[321679946,1712382673625,-333.040614,0.00024906,2]
[321679947,1712382673637,-333.040614,0.00024906,2]
[321679948,1712382673647,-333.040614,0.00024906,2]
[321679949,1712382673658,-333.040614,0.00024906,2]
[321679950,1712382673669,-333.040614,0.00024906,2]
[321679951,1712382673680,-333.040614,0.00024906,2]
[321679952,1712382673693,-333.040614,0.00024906,2]
[321679953,1712382673703,-333.040614,0.00024906,2]
[321679954,1712382673713,-296.040614,0.00024906,2]
[321679955,1712382673734,-333.040614,0.00024906,2]
[321679956,1712382673743,-333.040614,0.00024906,2]
[321679957,1712382673753,-333.040614,0.00024906,2]
[321679958,1712382673762,-333.040614,0.00024906,2]
[321679959,1712382673771,-333.040614,0.00024906,2]
[321679960,1712382673780,-333.040614,0.00024906,2]
[321679961,1712382673792,-333.040614,0.00024906,2]
[321679962,1712382673806,-333.040614,0.00024906,2]
[321679963,1712382673817,-333.040614,0.00024906,2]
[321679964,1712382673828,-333.040614,0.00024906,2]
[321679965,1712382673838,-1500.0,0.00024914,2]
[321679966,1712382673851,-156.51976743,0.00024916,2]
[321679967,1712382673861,-300.0,0.00024917,2]
[321679968,1712382673873,-150.0,0.00024918,2]
[321679969,1712382673883,-150.0,0.00024922,2]
[321679970,1712382673893,-150.0,0.00024924,2]
[321679971,1712382673904,-1500.0,0.00024929,2]
[321679972,1712382674015,-150.0,0.00024931,2]
[321679973,1712382674026,-150.098359,0.00024932,2]
[321679974,1712382674036,-150.0,0.00024935,2]
[321679975,1712382674045,-150.0,0.00024936,2]
[321679976,1712382674054,-1500.0,0.00024942,2]
[321679977,1712382674066,-150.0,0.00024944,2]
[321679978,1712382674075,-150.0,0.00024945,2]
[321679979,1712382674085,-150.0,0.00024946,2]
[321679980,1712382674094,-150.0,0.00024948,2]
[321679981,1712382674103,-159.65816158,0.0002495,2]
[321679982,1712382674113,-150.0,0.0002495,2]